bitfinex/quotes_SOLUSD_20250416
["timestamp","ask_amount","ask_price","bid_price","bid_amount"]
[1744838975927,82.94216157,132.95,132.9,16.73322441]
[1744838976131,82.8,132.94,132.92,15.21732441]
[1744838976320,82.8,132.94,132.93,15.21732441]
[1744838977417,82.8,132.97,132.93,22.74008074]
[1744838977627,82.8,132.96,132.94,15.21732441]
[1744838977824,82.8,132.96,132.93,15.21732441]
[1744838979545,82.8,132.96,132.92,7.52314377]
[1744838979546,82.8,132.96,132.94,15.21732441]
[1744838980428,82.8,132.96,132.91,7.52388834]
[1744838980624,82.8,132.96,132.93,15.21732441]
[1744838980823,82.8,132.96,132.94,15.21732441]
[1744838981025,82.8,132.95,132.94,15.21732441]
[1744838981254,82.8,132.95,132.92,56.0]
[1744838981458,82.8,132.95,132.94,15.21732441]
[1744838981748,82.8,132.95,132.94,22.73951487]
[1744838981944,7.51900623,133.0,132.95,44.64964886]
[1744838981945,82.8,133.0,132.95,44.64964886]
[1744838982144,82.8,133.0,132.99,15.21732441]
[1744838982329,82.8,132.99,132.98,15.21732441]
[1744838982843,82.8,133.01,132.95,27.80852314]
[1744838983047,82.8,133.03,132.96,30.0]
[1744838983347,106.53488023,133.02,132.97,23.73488023]
[1744838983535,23.73488023,133.01,132.96,53.73488023]
[1744838983734,7.51843193,133.01,132.96,61.25586394]
[1744838983949,90.31782632,133.02,132.97,23.73488023]
[1744838984131,82.8,133.02,132.98,23.73488023]
[1744838984332,82.8,133.01,132.98,23.73488023]
[1744838984726,82.8,133.01,132.96,31.25586394]
[1744838984927,23.8770418,133.0,132.95,1.5242]
[1744838985232,82.8,132.99,132.95,32.78048371]
[1744838985433,82.8,132.99,132.96,23.73488023]
[1744838986040,82.8,132.99,132.96,31.25592233]
[1744838987646,82.8,133.03,132.98,23.73488023]
[1744838987848,82.8,133.02,132.99,23.73488023]
[1744838988650,82.8,133.02,133.0,23.73488023]
[1744838989050,82.8,133.04,133.0,23.73488023]
[1744838989550,82.8,133.04,133.01,7.51823171]
[1744838989853,82.8,133.05,133.02,23.73488023]
[1744838990034,82.8,133.05,133.03,23.73488023]
[1744838990230,82.8,133.05,133.01,9.09093171]
[1744838990550,82.8,133.05,133.03,23.73488023]
[1744838990752,82.8,133.05,133.01,32.82581194]
[1744838990936,82.8,133.05,133.02,23.73488023]
[1744838991757,114.05086314,133.05,132.99,23.73488023]
[1744838992139,23.73488023,133.03,133.0,30.0]
[1744838992347,82.94216157,133.04,133.0,30.0]
[1744838992348,23.73488023,133.02,133.0,30.0]
[1744838992544,23.73488023,133.03,133.0,30.0]
[1744838993257,23.73488023,133.02,133.0,30.0]
[1744838993439,106.6770418,133.01,133.0,30.0]
[1744838993641,23.8770418,133.01,133.0,30.0]
[1744838993860,31.39527351,133.01,133.0,30.0]
[1744838994164,31.39527351,133.01,132.97,17.24]
[1744838994332,23.73488023,133.0,132.94,31.25674738]
[1744838994534,23.73488023,133.0,132.95,30.0]
[1744838994737,23.73488023,132.99,132.95,30.0]
[1744838994936,23.73488023,132.96,132.95,30.0]
[1744838995148,23.73488023,132.96,132.9,32.86400389]
[1744838995345,23.8770418,132.95,132.9,23.73488023]
[1744838995531,23.8770418,132.95,132.91,30.0]
[1744838995951,7.52219046,132.94,132.91,30.0]
[1744838996344,23.8770418,132.93,132.91,30.0]
[1744838996555,0.14216157,132.92,132.91,30.0]
[1744838996940,23.8770418,132.92,132.91,30.0]
[1744838997140,0.14216157,132.91,132.89,0.063]
[1744838997346,23.8770418,132.9,132.89,0.063]
[1744838998037,31.40149627,132.9,132.89,0.063]
[1744839001844,7.66661604,132.9,132.89,0.063]
[1744839002079,0.14216157,132.9,132.89,0.063]
[1744839002565,40.08873421,132.91,132.89,0.063]
[1744839002566,49.73488023,132.91,132.89,0.063]
[1744839003071,0.14216157,132.9,132.89,0.063]
[1744839003568,26.0,132.91,132.89,0.063]
[1744839003778,31.25779069,132.93,132.89,0.063]
[1744839003970,23.73488023,132.92,132.89,0.063]
[1744839004678,0.14216157,132.92,132.89,0.063]
[1744839004975,7.66560182,132.92,132.89,0.063]
[1744839005147,31.40048205,132.92,132.89,0.063]
[1744839005349,23.73488023,132.91,132.89,0.063]
[1744839006244,31.40048205,132.92,132.89,0.063]
[1744839007547,24.01920337,132.91,132.89,0.063]
[1744839007846,23.73488023,132.9,132.89,0.063]
[1744839008160,24.16136494,132.9,132.89,0.063]
[1744839008943,42.8110138,132.9,132.89,0.063]
[1744839009667,50.33546827,132.9,132.89,0.063]
[1744839011784,50.16136494,132.88,132.87,0.063]
[1744839013474,57.68695193,132.88,132.87,0.063]
[1744839013866,76.33660079,132.88,132.87,0.063]
[1744839014960,76.33660079,132.88,132.87,1e-08]
[1744839016489,0.28432314,132.86,132.85,0.063]
[1744839016678,73.89624517,132.86,132.85,0.063]
[1744839018070,0.14216157,132.85,132.84,1e-08]
[1744839018271,44.79181043,132.84,132.83,1e-08]
[1744839018472,68.52669066,132.84,132.83,1e-08]
[1744839019172,76.05454371,132.84,132.83,1e-08]
[1744839020170,76.33886685,132.84,132.83,1e-08]
[1744839020756,82.72196685,132.84,132.83,1e-08]
[1744839021166,19.07613357,132.83,132.81,0.063]
[1744839021374,31.69035153,132.82,132.81,1e-08]
[1744839021570,57.69035153,132.82,132.81,1e-08]
[1744839021768,31.69035153,132.82,132.81,1e-08]
[1744839021962,50.34000039,132.82,132.81,1e-08]
[1744839022274,45.07613357,132.8,132.79,1e-08]
[1744839022465,86.0710138,132.8,132.79,1e-08]
[1744839022656,109.80589403,132.8,132.79,1e-08]
[1744839023357,117.33601451,132.8,132.79,1e-08]
[1744839024275,0.42648471,132.79,132.77,0.063]
[1744839024457,42.52669066,132.78,132.77,0.063]
[1744839025257,26.32363237,132.77,132.76,0.063]
[1744839025457,26.32363237,132.77,132.76,1e-08]
[1744839025458,50.34283574,132.77,132.76,1e-08]
[1744839025975,0.28432314,132.76,132.75,0.063]
[1744839026178,0.28432314,132.76,132.74,0.063]
[1744839026179,18.933972,132.75,132.74,0.063]
[1744839026368,0.42648471,132.74,132.7,0.03]
[1744839026564,45.07613357,132.71,132.7,0.03]
[1744839026775,68.8110138,132.71,132.7,0.03]
[1744839027277,7.96227973,132.7,132.69,0.03]
[1744839027474,48.95715996,132.7,132.69,0.03]
[1744839028165,0.14216157,132.66,132.62,6.5414]
[1744839028367,23.73488023,132.64,132.62,6.5414]
[1744839028578,23.73488023,132.64,132.62,0.03]
[1744839029264,23.8770418,132.63,132.62,0.03]
[1744839029682,23.73488023,132.65,132.62,0.03]
[1744839029887,49.73488023,132.69,132.63,23.73488023]
[1744839030178,0.14216157,132.68,132.64,23.73488023]
[1744839030361,49.73488023,132.69,132.64,23.73488023]
[1744839030573,17.26,132.73,132.66,1.6591]
[1744839030774,23.73488023,132.74,132.69,23.73488023]
[1744839030975,23.73488023,132.76,132.7,23.73488023]
[1744839031268,23.73488023,132.77,132.72,7.53465943]
[1744839031516,49.73488023,132.77,132.72,7.53465943]
[1744839031982,23.73488023,132.77,132.72,31.26953966]
[1744839032588,23.73488023,132.78,132.73,23.73488023]
[1744839032796,23.73488023,132.79,132.74,23.73488023]
[1744839032981,0.14216157,132.78,132.74,23.73488023]
[1744839033300,64.11213358,132.8,132.75,7.53295668]
[1744839033677,0.14216157,132.79,132.75,45.64509026]
[1744839033876,25.07353107,132.82,132.75,45.64509026]
[1744839033877,17.26,132.82,132.77,38.11213358]
[1744839034182,38.11213358,132.84,132.78,38.11213358]
[1744839034799,38.11213358,132.86,132.81,38.11213358]
[1744839035001,24.78574531,132.88,132.81,39.74903358]
[1744839035168,0.063,132.83,132.82,38.11213358]
[1744839035363,0.063,132.83,132.82,45.64112017]
[1744839035571,0.063,132.83,132.82,71.64112017]
[1744839035789,0.063,132.83,132.82,78.12232017]
[1744839038574,0.063,132.83,132.82,33.52898659]
[1744839038781,0.063,132.83,132.81,39.74903358]
[1744839038782,0.063,132.83,132.81,1.6369]
[1744839039097,0.063,132.83,132.78,6.2484]
[1744839039098,38.11213358,132.82,132.78,6.2484]
[1744839039406,38.11213358,132.81,132.77,1.5108]
[1744839041172,0.14216157,132.81,132.77,1.5108]
[1744839041793,0.14216157,132.81,132.77,9.04252833]
[1744839042099,0.14216157,132.81,132.77,47.15466191]
[1744839042785,0.14216157,132.81,132.77,9.04252833]
[1744839042994,45.78398041,132.81,132.75,71.64471264]
[1744839043180,45.78398041,132.81,132.74,7.53342641]
[1744839043181,38.25429515,132.79,132.74,7.53342641]
[1744839043497,38.25429515,132.79,132.74,33.53342641]
[1744839044080,0.14216157,132.79,132.75,38.11213358]
[1744839044998,0.14216157,132.79,132.75,45.64470592]
[1744839045875,38.17513358,132.83,132.77,38.11213358]
[1744839046070,0.063,132.83,132.78,38.11213358]
[1744839046783,0.20516157,132.83,132.78,38.11213358]
[1744839047083,38.31729515,132.83,132.77,38.11213358]
[1744839047283,45.70375168,132.83,132.78,7.5312547]
[1744839047502,0.14216157,132.82,132.78,7.5312547]
[1744839048703,0.20516157,132.83,132.78,45.64338828]
[1744839049204,0.063,132.83,132.81,45.64168707]
[1744839049379,0.063,132.83,132.82,38.11213358]
[1744839049998,38.17513358,132.89,132.82,38.11213358]
[1744839049999,0.063,132.89,132.86,26.0]
[1744839050201,0.063,132.89,132.87,38.11213358]
[1744839050405,0.063,132.89,132.88,38.11213358]
[1744839051313,0.063,132.89,132.88,45.63772057]
[1744839051486,0.063,132.89,132.88,64.57169257]
[1744839051696,1e-08,132.89,132.88,64.57169257]
[1744839052082,0.20516157,132.97,132.88,64.57169257]
[1744839052083,0.063,132.97,132.92,18.64964886]
[1744839052409,0.063,132.97,132.94,38.11213358]
[1744839053286,0.063,132.97,132.95,7.52162467]
[1744839053483,0.063,132.97,132.94,38.11213358]
[1744839054411,0.063,132.97,132.95,38.11213358]
[1744839055103,0.063,132.97,132.96,38.11213358]
[1744839055699,0.063,132.97,132.95,38.11213358]
[1744839059906,0.063,132.97,132.94,38.11213358]
[1744839060521,38.17513358,132.97,132.91,17.22]
[1744839060693,38.17513358,132.97,132.9,38.11213358]
[1744839060694,38.11213358,132.95,132.9,38.11213358]
[1744839061119,38.11213358,132.93,132.88,38.11213358]
[1744839061323,82.8,132.92,132.88,38.11213358]
[1744839061702,90.3238174,132.92,132.88,38.11213358]
[1744839064804,82.8,132.91,132.88,38.11213358]
[1744839069131,82.8,132.91,132.88,45.63768872]
[1744839070626,82.8,132.9,132.88,45.63768872]
[1744839071419,82.8,132.9,132.88,38.11213358]
[1744839071624,82.8,132.9,132.89,38.11213358]
[1744839073221,82.8,132.9,132.89,45.63715427]
[1744839073416,82.8,132.9,132.89,7.52502069]
[1744839073808,82.8,132.9,132.89,45.63715427]
[1744839074127,82.8,132.9,132.89,38.11213358]
[1744839074325,82.8,132.9,132.88,7.52540662]
[1744839074627,82.8,132.9,132.88,38.11213358]
[1744839079137,82.8,132.9,132.88,23.77157116]
[1744839084432,82.8,132.9,132.88,31.29710294]
[1744839084610,82.8,132.92,132.89,23.77157116]
[1744839084922,82.8,132.92,132.9,23.77157116]
[1744839088135,90.32352486,132.92,132.87,43.22]
[1744839088433,106.57157116,132.91,132.87,17.22]
[1744839088626,23.91373273,132.9,132.85,23.77157116]
[1744839088810,82.8,132.89,132.85,23.77157116]
[1744839089009,82.8,132.89,132.84,31.29899499]
[1744839089411,113.09747116,132.89,132.84,23.77157116]
[1744839090632,113.09747116,132.89,132.82,0.03]
[1744839090633,23.91373273,132.87,132.82,0.03]
[1744839090834,106.57157116,132.86,132.82,0.03]
[1744839091310,23.91373273,132.85,132.82,0.03]
[1744839091709,23.77157116,132.84,132.82,0.03]
[1744839091947,82.8,132.83,132.82,0.03]
[1744839092541,90.32841978,132.83,132.82,0.03]
[1744839094239,31.44215251,132.83,132.82,0.03]
[1744839094440,38.04947565,132.83,132.82,0.03]
[1744839095507,56.69912451,132.83,132.82,0.03]
[1744839096317,56.69912451,132.83,132.82,1e-08]
[1744839097738,38.04947565,132.83,132.82,1e-08]
[1744839097945,64.04947565,132.83,132.82,1e-08]
[1744839098145,63.76515251,132.83,132.82,1e-08]
[1744839098329,63.76515251,132.83,132.77,31.30335953]
[1744839098330,82.79999999,132.81,132.77,31.30335953]
[1744839098644,82.79999999,132.8,132.77,31.30335953]
[1744839101148,82.79999999,132.8,132.77,45.62920712]
[1744839101323,82.79999999,132.79,132.77,45.62920712]
[1744839102716,82.79999999,132.79,132.78,38.09741875]
[1744839103448,82.79999999,132.79,132.78,45.62867345]
[1744839109549,82.79999999,132.81,132.78,45.62867345]
[1744839113853,82.79999999,132.81,132.77,38.09741875]
[1744839114054,82.79999999,132.81,132.76,71.62937776]
[1744839114737,82.79999999,132.8,132.76,71.62937776]
[1744839120164,82.79999999,132.79,132.76,71.62937776]
[1744839121134,82.79999999,132.79,132.76,57.34741935]
[1744839122663,82.79999999,132.85,132.78,42.4651092]
[1744839122957,82.79999999,132.85,132.82,23.81546034]
[1744839123859,82.79999999,132.85,132.79,17.48432314]
[1744839124046,82.79999999,132.85,132.81,23.81546034]
[1744839124244,82.79999999,132.85,132.82,23.81546034]
[1744839124651,82.79999999,132.85,132.83,7.52841978]
[1744839128061,0.063,132.88,132.84,23.81546034]
[1744839128266,0.063,132.88,132.86,23.81546034]
[1744839128650,0.063,132.88,132.85,31.34227535]
[1744839129956,0.063,132.88,132.86,23.81546034]
[1744839130153,0.063,132.88,132.86,31.34195092]
[1744839130344,0.063,132.88,132.86,7.52649058]
[1744839130866,0.063,132.88,132.86,31.34195092]
[1744839131360,0.063,132.88,132.87,23.81546034]
[1744839131951,0.063,132.88,132.87,49.81546034]
[1744839133561,0.063,132.88,132.87,57.34161372]
[1744839133940,0.063,132.88,132.85,7.52728641]
[1744839134166,0.063,132.88,132.87,23.81546034]
[1744839134542,0.063,132.88,132.86,23.81546034]
[1744839135877,0.063,132.88,132.85,23.81546034]
[1744839136369,82.86299999,132.88,132.84,31.34328996]
[1744839136676,82.86299999,132.88,132.85,23.81546034]
[1744839137460,82.79999999,132.87,132.84,23.81546034]
[1744839137971,82.79999999,132.87,132.83,31.34364358]
[1744839138163,82.79999999,132.87,132.83,23.81546034]
[1744839138555,82.79999999,132.87,132.82,31.34423501]
[1744839138756,82.79999999,132.87,132.81,26.0]
[1744839138757,82.94216156,132.86,132.81,26.0]
[1744839138955,114.14289573,132.85,132.8,31.34553264]
[1744839139171,82.79999999,132.87,132.84,23.81546034]
[1744839139370,82.79999999,132.86,132.85,23.81546034]
[1744839140070,82.79999999,132.86,132.84,23.81546034]
[1744839141371,82.79999999,132.86,132.84,31.34329175]
[1744839145170,0.063,132.88,132.85,23.81546034]
[1744839145375,0.063,132.88,132.87,23.81546034]
[1744839146460,0.063,132.88,132.87,31.34161372]
[1744839149167,0.063,132.88,132.86,31.34211372]
[1744839150077,0.063,132.88,132.85,23.81546034]
[1744839150381,0.063,132.88,132.84,43.18]
[1744839150382,0.063,132.88,132.86,23.81546034]
[1744839150570,0.063,132.88,132.87,23.81546034]
[1744839150746,0.063,132.88,132.86,7.52630532]
[1744839150951,0.063,132.88,132.87,23.81546034]
[1744839151151,0.063,132.88,132.86,7.52630532]
[1744839151152,0.063,132.88,132.84,7.52785305]
[1744839151374,82.79999999,132.87,132.83,24.70817329]
[1744839151684,82.79999999,132.87,132.83,50.70817329]
[1744839151972,82.79999999,132.87,132.83,39.92647126]
[1744839152176,82.94216156,132.86,132.82,7.52893922]
[1744839152682,82.94216156,132.86,132.81,15.21829797]
[1744839152683,90.46917521,132.86,132.81,22.7477561]
[1744839152866,82.79999999,132.85,132.81,22.7477561]
[1744839153174,82.79999999,132.85,132.82,23.79581757]
[1744839153571,82.79999999,132.85,132.8,7.52970247]
[1744839153774,82.79999999,132.85,132.81,23.79581757]
[1744839153970,82.79999999,132.85,132.78,7.5310964]
[1744839153971,23.93797914,132.84,132.78,7.5310964]
[1744839154158,106.59581756,132.83,132.78,31.32691397]
[1744839154360,106.59581756,132.83,132.78,7.5310964]
[1744839154674,23.93797914,132.82,132.76,41.00581757]
[1744839154872,7.52955349,132.81,132.76,48.53803265]
[1744839155068,106.73797913,132.8,132.76,17.21]
[1744839155372,106.59581756,132.79,132.76,0.03]
[1744839155580,106.73797913,132.78,132.76,0.03]
[1744839155765,82.79999999,132.77,132.76,0.03]
[1744839157070,31.75412422,132.77,132.76,0.03]
[1744839157253,82.77,132.75,132.74,0.03]
[1744839157463,50.22230228,132.75,132.74,0.03]
[1744839157668,26.14216157,132.75,132.74,0.03]
[1744839157864,23.93797914,132.75,132.74,0.03]
[1744839158875,64.27845896,132.75,132.74,0.03]
[1744839159252,84.45130782,132.75,132.74,0.03]
[1744839159554,44.933972,132.73,132.72,0.03]
[1744839159866,92.66776871,132.73,132.72,0.03]
[1744839160748,68.87195114,132.73,132.72,0.03]
[1744839160954,76.4060429,132.73,132.72,0.03]
[1744839162380,82.74,132.7,132.68,0.03]
[1744839162581,106.67797914,132.69,132.68,0.03]
[1744839162762,45.30329317,132.73,132.68,0.03]
[1744839162958,0.14216157,132.71,132.68,0.03]
[1744839164179,82.8,132.72,132.7,23.79581757]
[1744839164480,82.8,132.72,132.71,23.79581757]
[1744839165264,82.8,132.72,132.71,31.33104475]
[1744839165591,82.8,132.77,132.74,26.0]
[1744839165770,82.8,132.77,132.76,23.79581757]
[1744839166462,106.59581757,132.82,132.76,23.79581757]
[1744839166662,106.59581757,132.82,132.77,23.79581757]
[1744839166878,82.8,132.82,132.77,23.79581757]
[1744839167179,6.2843,132.83,132.79,23.79581757]
[1744839167360,82.8,132.84,132.79,23.79581757]
[1744839167756,89.4537,132.87,132.81,23.79581757]
[1744839168074,139.24951757,132.87,132.82,23.79581757]
[1744839168577,0.14216157,132.86,132.82,23.79581757]
[1744839168761,113.24951757,132.87,132.82,23.79581757]
[1744839168960,120.77583567,132.87,132.82,23.79581757]
[1744839169255,96.9800181,132.87,132.82,38.06897222]
[1744839169661,96.9800181,132.87,132.83,38.06897222]
[1744839169866,0.14216157,132.86,132.83,38.06897222]
[1744839170673,82.8,132.87,132.84,38.06897222]
[1744839171679,82.8,132.87,132.85,38.06897222]
[1744839171893,0.063,132.88,132.86,38.06897222]
[1744839172186,0.063,132.88,132.87,38.06897222]
[1744839172486,0.063,132.88,132.87,45.5951256]
[1744839172790,0.063,132.88,132.83,44.82104946]
[1744839172791,0.063,132.88,132.85,38.06897222]
[1744839172975,0.063,132.88,132.87,38.06897222]
[1744839174070,0.063,132.88,132.87,74.16294422]
[1744839174476,0.063,132.88,132.87,81.6890976]
[1744839175782,0.063,132.93,132.9,26.0]
[1744839175965,0.063,132.93,132.92,38.06897222]
[1744839176887,0.063,132.93,132.88,26.0]
[1744839177080,0.063,132.93,132.9,38.06897222]
[1744839178694,0.063,132.93,132.85,17.14]
[1744839178695,121.21629536,132.93,132.85,17.14]
[1744839178875,0.14216157,132.91,132.87,38.06897222]
[1744839179601,0.14216157,132.91,132.86,38.06897222]
[1744839180199,7.66629037,132.91,132.86,38.06897222]
[1744839181091,82.8,132.9,132.85,55.20897222]
[1744839181400,120.86897222,132.9,132.85,55.20897222]
[1744839182096,82.8,132.89,132.85,55.20897222]
[1744839182393,90.32538627,132.89,132.85,17.14]
[1744839182580,128.39435849,132.89,132.85,17.14]
[1744839182779,82.8,132.88,132.83,38.06897222]
[1744839182983,82.8,132.88,132.84,38.06897222]
[1744839183704,82.94216157,132.87,132.83,38.06897222]
[1744839183997,82.8,132.86,132.82,38.06897222]
[1744839184301,90.32715908,132.86,132.81,55.20897222]
[1744839184482,0.14216157,132.85,132.81,17.14]
[1744839186603,82.8,132.92,132.9,38.06897222]
[1744839187898,82.8,132.92,132.89,7.52480258]
[1744839188078,82.8,132.92,132.9,38.06897222]
[1744839190015,82.8,132.91,132.9,38.06897222]
[1744839192399,82.8,132.91,132.88,38.06897222]
[1744839193805,82.8,132.9,132.88,38.06897222]
[1744839194111,82.8,132.9,132.87,45.59495118]
[1744839197711,82.8,132.9,132.88,45.59439016]
[1744839199911,82.8,132.9,132.87,38.06897222]
[1744839200112,82.8,132.89,132.86,43.14]
[1744839200303,82.8,132.89,132.86,17.14]
[1744839200530,82.8,132.89,132.84,45.59644316]
[1744839200821,82.8,132.88,132.84,38.06897222]
[1744839201024,82.8,132.87,132.84,38.06897222]
[1744839201399,82.8,132.86,132.82,55.18897222]
[1744839201601,82.8,132.85,132.82,17.12]
[1744839201898,90.32746189,132.85,132.82,17.12]
[1744839202117,128.39643411,132.85,132.82,17.12]
[1744839202302,128.39643411,132.85,132.8,38.06897222]
[1744839203029,38.06897222,132.82,132.79,0.03]
[1744839203206,127.15027222,132.81,132.79,0.03]
[1744839203411,38.21113379,132.8,132.79,0.03]
[1744839204003,46.02557741,132.8,132.79,0.03]
[1744839204222,64.67522627,132.8,132.79,0.03]
[1744839204613,26.0,132.77,132.71,0.03]
[1744839204814,38.06897222,132.75,132.71,0.03]
[1744839205209,38.21113379,132.74,132.73,0.03]
[1744839206034,71.74465797,132.74,132.73,0.03]
[1744839206205,97.18482997,132.74,132.73,0.03]
[1744839208808,0.28432314,132.72,132.71,0.03]
[1744839209124,83.14510579,132.72,132.71,0.03]
[1744839209299,57.14510579,132.72,132.71,0.03]
[1744839209703,95.21407801,132.72,132.71,0.03]
[1744839209925,0.14216157,132.72,132.71,0.03]
[1744839210126,38.06897222,132.72,132.71,0.03]
[1744839210423,64.67976522,132.72,132.71,0.03]
[1744839211308,64.67976522,132.72,132.68,0.03]
[1744839211309,26.0,132.69,132.68,0.03]
[1744839211515,83.14510579,132.69,132.68,0.03]
[1744839212329,90.68146874,132.69,132.68,0.03]
[1744839212533,0.14216157,132.69,132.68,0.03]
[1744839215032,0.14216157,132.7,132.68,0.03]
[1744839218337,26.0,132.72,132.68,0.03]
[1744839218522,52.10875322,132.74,132.68,38.09897222]
[1744839218721,0.14216157,132.73,132.68,38.09897222]
[1744839219156,0.14216157,132.73,132.68,45.63538599]
[1744839219622,0.14216157,132.73,132.7,38.06897222]
[1744839219827,0.14216157,132.74,132.71,38.06897222]
[1744839220026,82.8,132.73,132.71,38.06897222]
[1744839220428,82.8,132.72,132.71,38.06897222]
[1744839221148,82.8,132.72,132.71,45.6041994]
[1744839223644,82.8,132.72,132.71,7.53522718]
[1744839223841,82.8,132.72,132.71,45.6041994]
[1744839224142,82.8,132.72,132.71,7.53522718]
[1744839224342,82.8,132.72,132.71,45.6041994]
[1744839226237,82.8,132.72,132.71,7.53522718]
[1744839226429,82.8,132.72,132.71,45.6041994]
[1744839227251,82.8,132.72,132.71,23.83289112]
[1744839228646,82.8,132.72,132.71,31.3681183]
[1744839231550,82.8,132.72,132.68,0.03]
[1744839231723,82.8,132.71,132.68,7.56668734]
[1744839231922,82.8,132.71,132.68,31.39957846]
[1744839232843,82.8,132.7,132.68,7.56668734]
[1744839233022,82.8,132.7,132.68,31.39957846]
[1744839234132,82.8,132.7,132.68,0.03]
[1744839237848,82.8,132.69,132.68,0.03]
[1744839238053,0.14216157,132.71,132.68,0.03]
[1744839241252,0.14216157,132.7,132.68,0.03]
[1744839241432,23.83289112,132.69,132.68,0.03]
[1744839241630,42.90902469,132.69,132.68,0.03]
[1744839243153,50.44538764,132.69,132.68,0.03]
[1744839243358,76.44538764,132.69,132.68,0.03]
[1744839245356,0.42648471,132.66,132.64,0.03]
[1744839245650,106.60289112,132.65,132.64,0.03]
[1744839245861,125.67902469,132.65,132.64,0.03]
[1744839246353,68.90902469,132.65,132.64,0.03]
[1744839247342,76.44766019,132.65,132.64,0.03]
[1744839248669,57.51368819,132.65,132.64,0.03]
[1744839249759,33.68079707,132.65,132.64,0.03]
[1744839249943,57.51368819,132.65,132.64,0.03]
[1744839250450,125.34265131,132.65,132.64,0.03]
[1744839251053,101.50976019,132.65,132.64,0.03]
[1744839252658,81.31941133,132.65,132.64,0.03]
[1744839253555,82.88216157,132.63,132.62,0.03]
[1744839253746,0.14216157,132.63,132.62,0.03]
[1744839254147,57.0600355,132.65,132.62,0.03]
[1744839254452,39.9600355,132.65,132.62,0.03]
[1744839254657,0.14216157,132.64,132.62,0.03]
[1744839257770,7.53824437,132.66,132.62,23.86289112]
[1744839258065,82.8,132.65,132.63,1.528]
[1744839258240,82.8,132.65,132.64,23.83289112]
[1744839258664,82.8,132.7,132.64,23.83289112]
[1744839258969,82.8,132.69,132.68,23.83289112]
[1744839259355,82.8,132.69,132.64,26.38721351]
[1744839259565,82.8,132.69,132.66,23.83289112]
[1744839259861,82.8,132.69,132.67,23.83289112]
[1744839260042,82.8,132.69,132.68,23.83289112]
[1744839261140,82.8,132.73,132.68,23.83289112]
[1744839261346,82.8,132.76,132.72,23.83289112]
[1744839261540,82.8,132.76,132.73,23.83289112]
[1744839261770,82.8,132.76,132.75,23.83289112]
[1744839261952,0.063,132.77,132.75,23.83289112]
[1744839262553,0.063,132.77,132.76,23.83289112]
[1744839263148,0.063,132.77,132.74,23.83289112]
[1744839263350,0.063,132.77,132.75,23.83289112]
[1744839263654,0.063,132.77,132.76,23.83289112]
[1744839263850,82.863,132.77,132.76,23.83289112]
[1744839264451,0.063,132.77,132.76,23.83289112]
[1744839264947,0.063,132.77,132.76,49.83289112]
[1744839265256,0.063,132.77,132.75,23.83289112]
[1744839265569,0.063,132.77,132.76,23.83289112]
[1744839266363,0.063,132.77,132.76,42.76686312]
[1744839266567,0.063,132.77,132.76,44.26686312]
[1744839266752,0.063,132.77,132.76,25.33289112]
[1744839266952,0.063,132.77,132.76,23.83289112]
[1744839267759,0.063,132.77,132.76,31.36528039]
[1744839268972,0.063,132.77,132.76,23.83289112]
[1744839269156,0.063,132.77,132.76,31.36528039]
[1744839269551,0.063,132.77,132.76,76.29925239]
[1744839270460,0.063,132.78,132.76,50.44141396]
[1744839270768,82.8,132.82,132.77,44.30346312]
[1744839270960,0.063,132.83,132.81,23.83289112]
[1744839271266,0.063,132.83,132.82,23.83289112]
[1744839272267,0.063,132.83,132.82,31.36187771]
[1744839272562,0.063,132.83,132.82,57.36187771]
[1744839273369,0.063,132.83,132.82,76.29584971]
[1744839273755,0.063,132.83,132.82,57.36187771]
[1744839274175,0.063,132.83,132.82,49.83289112]
[1744839274368,0.063,132.83,132.82,57.36187771]
[1744839275477,0.063,132.83,132.82,76.29584971]